fUST/lending_fUST_20251106
["ID","MTS","AMOUNT","RATE_DAILY","PERIOD"]
[393264678,1762401037960,-538.10852414,0.00019973,2]
[393264679,1762401037972,-579.34479609,0.00019999,2]
[393264680,1762401037981,-3983.51587718,0.0002,2]
[393264681,1762401037990,-368.73442645,0.0002,2]
[393264682,1762401037999,-18492.06920054,0.0002,2]
[393264689,1762401042847,-301.71947969,0.0002,2]
[393264696,1762401046015,-4206.21131977,0.0002,2]
[393264697,1762401046024,-201.08190204,0.0002,2]
[393264698,1762401046033,-4080.4378801,0.0002,2]
[393264699,1762401046042,-160.83362038,0.0002,2]
[393264700,1762401046051,-221.08412926,0.00020098,2]
[393264701,1762401046060,-526.876076,0.00020187,2]
[393264702,1762401046069,-177.0,0.00020289,2]
[393264703,1762401046078,-1330.71,0.0002052,2]
[393264704,1762401046087,-1330.71,0.0002052,2]
[393264705,1762401046096,-1330.71,0.0002052,2]
[393264706,1762401046105,-1330.71,0.0002052,2]
[393264707,1762401046114,-1330.71,0.0002052,2]
[393264708,1762401046122,-500.0,0.0002052,2]
[393264709,1762401046131,-592.17240846,0.00020521,2]
[393264710,1762401046141,-502.69411424,0.00020521,2]
[393264711,1762401046150,-1000.0,0.00020521,2]
[393264712,1762401046159,-503.78335761,0.00020521,2]
[393264713,1762401046167,-1000.0,0.00020521,2]
[393264714,1762401046176,-1000.0,0.00020521,2]
[393264715,1762401046185,-503.20572372,0.00020521,2]
[393264716,1762401046194,-1000.0,0.00020521,2]
[393264717,1762401046203,-251.44066914,0.00020521,2]
[393264718,1762401046212,-503.60880994,0.00020521,2]
[393264719,1762401046220,-504.39823919,0.00020521,2]
[393264720,1762401046229,-1378.23731742,0.0002061,2]
[393264721,1762401046239,-500.0,0.00020794,2]
[393264722,1762401046248,-150.0,0.00020829,2]
[393264723,1762401046256,-254.29720437,0.000209,2]
[393264724,1762401046265,-199.43971317,0.00020952,2]
[393264725,1762401046274,-1330.71,0.00020999,2]
[393264726,1762401046283,-1330.71,0.00020999,2]
[393264727,1762401046292,-205.68223006,0.00021,2]
[393264728,1762401046301,-49249.0,0.00021,2]
[393264729,1762401046310,-509.79584785,0.00021068,2]
[393264730,1762401046319,-170.47827946,0.00021068,2]
[393264731,1762401046328,-1500.0,0.00021068,2]
[393264732,1762401046338,-1500.0,0.00021068,2]
[393264733,1762401046347,-1500.0,0.00021068,2]
[393264734,1762401046356,-796.94161066,0.00021149,2]
[393264735,1762401046365,-959.87141835,0.00021149,2]
[393264736,1762401046374,-160.0,0.0002115,2]
[393264737,1762401046383,-160.0,0.00021287,2]
[393264738,1762401046392,-160.0,0.00021287,2]
[393264739,1762401046401,-1330.71,0.00021499,2]
[393264740,1762401046410,-12752.66368501,0.000215,2]
[393264741,1762401046419,-1330.71,0.00021616,2]
[393264742,1762401046429,-502.97133346,0.00021616,2]
[393264743,1762401046438,-2000.0,0.00021616,2]
[393264744,1762401046447,-2000.0,0.00021616,2]
[393264745,1762401046456,-260.0,0.00021698,2]
[393264746,1762401046466,-300.0,0.00021731,20]
[393264747,1762401046475,-300.0,0.00021731,20]
[393264748,1762401046485,-300.0,0.00021731,20]
[393264749,1762401046494,-300.0,0.00021731,20]
[393264750,1762401046503,-300.0,0.00021731,20]
[393264751,1762401046512,-300.0,0.00021731,20]
[393264752,1762401046521,-150.0,0.00021776,2]
[393264753,1762401046530,-1680.0,0.0002185,2]
[393264754,1762401046540,-6492.48782444,0.000219,2]
[393264755,1762401046549,-500.0,0.00021917,2]
[393264756,1762401046559,-500.0,0.00021917,2]
[393264757,1762401046568,-500.0,0.00021917,2]
[393264758,1762401046577,-500.0,0.00021917,2]
[393264759,1762401046587,-500.0,0.00021917,2]
[393264760,1762401046596,-500.0,0.00021917,2]
[393264761,1762401046605,-500.0,0.00021917,2]
[393264762,1762401046614,-500.0,0.00021917,2]
[393264763,1762401046623,-500.0,0.00021917,2]
[393264764,1762401046633,-500.0,0.00021917,2]
[393264765,1762401046642,-500.0,0.00021972,2]
[393264766,1762401046651,-1330.71,0.00021972,2]
[393264767,1762401046660,-501.42005037,0.00021973,2]
[393264768,1762401046669,-502.93012659,0.00021973,2]
[393264769,1762401046678,-501.31128797,0.00021973,2]
[393264770,1762401046687,-505.65367661,0.00021973,2]
[393264771,1762401046697,-500.0,0.00021973,2]
[393264772,1762401046706,-500.0,0.00021973,2]
[393264773,1762401046715,-500.0,0.00021973,2]
[393264774,1762401046724,-501.45599802,0.00021973,2]
[393264775,1762401046733,-500.0,0.00021973,2]
[393264776,1762401046743,-501.14040446,0.00021973,2]
[393264777,1762401046752,-500.0,0.00021973,2]
[393264778,1762401046761,-502.77286911,0.00021973,2]
[393264779,1762401046770,-500.0,0.00021973,2]
[393264780,1762401046779,-500.0,0.00021973,2]
[393264781,1762401046788,-500.0,0.00021973,2]
[393264782,1762401046797,-500.0,0.00021973,2]
[393264783,1762401046807,-503.78294215,0.00021973,2]
[393264784,1762401046816,-500.0,0.00021973,2]
[393264785,1762401046825,-500.0,0.00021973,2]
[393264786,1762401046835,-500.0,0.00021973,2]
[393264787,1762401046844,-501.58836156,0.00021973,2]
[393264788,1762401046853,-500.0,0.00021973,2]
[393264789,1762401046863,-500.0,0.00021973,2]
[393264790,1762401046872,-503.47986803,0.00021973,2]
[393264791,1762401046970,-501.95104138,0.00021973,2]
[393264792,1762401046983,-503.01953824,0.00021973,2]
[393264793,1762401046992,-500.0,0.00021973,2]
[393264794,1762401047001,-502.4747035,0.00021973,2]
[393264795,1762401047010,-500.0,0.00021973,2]
[393264796,1762401047019,-501.51241435,0.00021973,2]
[393264797,1762401047029,-500.0,0.00021973,2]
[393264798,1762401047038,-500.0,0.00021973,2]
[393264799,1762401047048,-500.0,0.00021973,2]
[393264800,1762401047056,-500.0,0.00021973,2]
[393264801,1762401047065,-500.0,0.00021973,2]
[393264802,1762401047075,-500.0,0.00021973,2]
[393264803,1762401047086,-510.73941544,0.00021973,2]
[393264804,1762401047095,-500.0,0.00021973,2]
[393264805,1762401047106,-501.86801369,0.00021973,2]
[393264806,1762401047115,-162.49623313,0.00021973,2]
[393264807,1762401047125,-500.0,0.00021973,2]
[393264808,1762401047135,-503.29698233,0.00021973,2]
[393264809,1762401047143,-502.57873042,0.00021973,2]
[393264810,1762401047153,-500.0,0.00021973,2]
[393264811,1762401047163,-504.61337735,0.00021973,2]
[393264812,1762401047172,-500.0,0.00021973,2]
[393264813,1762401047180,-502.55950506,0.00021973,2]
[393264814,1762401047190,-500.0,0.00021973,2]
[393264815,1762401047199,-508.31377217,0.00021973,2]
[393264816,1762401047208,-500.0,0.00021973,2]
[393264817,1762401047218,-151.0,0.0002199,2]
[393264818,1762401047227,-28169.91317939,0.0002199,2]
[393264819,1762401047236,-500.0,0.00021999,2]
[393264820,1762401047245,-500.0,0.00021999,2]
[393264821,1762401047254,-500.0,0.00021999,2]
[393264822,1762401047263,-500.0,0.00021999,2]
[393264823,1762401047272,-500.0,0.00021999,2]
[393264824,1762401047281,-1330.71,0.00021999,2]
[393264825,1762401047290,-1330.71,0.00021999,2]
[393264826,1762401047299,-1330.71,0.00021999,2]
[393264827,1762401047307,-1330.71,0.00021999,2]
[393264828,1762401047316,-1330.71,0.00021999,2]
[393264829,1762401047325,-60175.7943682,0.00022,2]
[393264830,1762401047335,-21141.15436941,0.00022,2]
[393264831,1762401047344,-290.12,0.00022,7]
[393264832,1762401047353,-10645.08,0.00022,7]
[393264833,1762401047362,-198.4,0.00022,14]
[393264834,1762401047371,-248.91384361,0.00022,7]
[393264835,1762401047380,-2302.91928142,0.00022164,2]
[393264836,1762401047389,-2500.0,0.00022164,2]
[393264837,1762401047398,-360.0,0.00022246,2]
[393264838,1762401047407,-204.0,0.00022289,2]
[393264839,1762401047416,-500.0,0.0002252,2]
[393264840,1762401047426,-1330.71,0.0002252,2]
[393264841,1762401047435,-1000.0,0.00022521,2]
[393264842,1762401047444,-1000.0,0.00022521,2]
[393264843,1762401047453,-1006.32815053,0.00022521,2]
[393264844,1762401047462,-1000.0,0.00022521,2]
[393264845,1762401047471,-1003.9776655,0.00022521,2]
[393264846,1762401047481,-1000.0,0.00022521,2]
[393264847,1762401047491,-1000.0,0.00022521,2]
[393264848,1762401047502,-602.9020376,0.00022521,2]
[393264849,1762401047511,-181.40862395,0.00022521,2]
[393264850,1762401047521,-1000.0,0.00022521,2]
[393264851,1762401047530,-1000.0,0.00022521,2]
[393264852,1762401047540,-1000.0,0.00022521,2]
[393264853,1762401047549,-1000.0,0.00022521,2]
[393264854,1762401047558,-1000.0,0.00022521,2]
[393264855,1762401047566,-424.91665873,0.00022521,2]
[393264856,1762401047575,-1000.0,0.00022521,2]
[393264857,1762401047585,-1000.0,0.00022521,2]
[393264858,1762401047594,-507.70332805,0.00022521,2]
[393264859,1762401047603,-504.51463575,0.00022521,2]
[393264860,1762401047613,-1000.0,0.00022521,2]
[393264861,1762401047622,-643.04882482,0.00022521,2]
[393264862,1762401047631,-1000.0,0.00022521,2]
[393264863,1762401047640,-945.73321459,0.00022521,2]
[393264864,1762401047649,-1000.0,0.00022521,2]
[393264865,1762401047659,-1000.0,0.00022521,2]
[393264866,1762401047668,-1000.0,0.00022521,2]
[393264867,1762401047677,-515.63470959,0.00022521,2]
[393264868,1762401047685,-1000.0,0.00022521,2]
[393264869,1762401047694,-3000.0,0.00022712,2]
[393264870,1762401047703,-150.0,0.00022722,2]
[393264871,1762401047712,-460.0,0.00022794,2]
[393264872,1762401047722,-469.77563929,0.00022804,2]
[393264873,1762401047732,-533.88981491,0.00022804,2]
[393264874,1762401047741,-500.0,0.00022989,2]
[393264875,1762401047750,-500.0,0.00022989,2]
[393264876,1762401047759,-1330.71,0.00022989,2]
[393264877,1762401047768,-1330.71,0.00022989,2]
[393264878,1762401047777,-1330.71,0.00023068,2]
[393264879,1762401047787,-450.20288359,0.00023068,2]
[393264880,1762401047796,-1500.0,0.00023068,2]
[393264881,1762401047805,-1500.0,0.00023068,2]
[393264882,1762401047814,-1500.0,0.00023068,2]
[393264883,1762401047823,-1500.0,0.00023068,2]
[393264884,1762401047832,-1008.62434702,0.00023068,2]
[393264885,1762401047841,-1500.0,0.00023068,2]
[393264886,1762401047850,-1558.87687813,0.00023068,2]
[393264887,1762401047859,-438.78176521,0.00023068,2]
[393264888,1762401047868,-1500.0,0.00023068,2]
[393264889,1762401047877,-1077.21373593,0.00023068,2]
[393264890,1762401047886,-1500.0,0.00023068,2]
[393264891,1762401047899,-681.80361315,0.00023068,2]
[393264892,1762401047909,-1065.18522007,0.00023068,2]
[393264893,1762401047918,-1508.94055791,0.00023068,2]
[393264894,1762401047927,-1500.0,0.00023068,2]
[393264895,1762401047937,-1500.0,0.00023068,2]
[393264896,1762401047946,-1500.0,0.00023068,2]
[393264897,1762401047955,-842.32028171,0.0002326,2]
[393264898,1762401047964,-500.0,0.00023286,2]
[393264899,1762401047976,-427.68941082,0.00023286,2]
[393264900,1762401047985,-1330.71,0.00023287,2]
[393264901,1762401047994,-1330.71,0.00023287,2]
[393264902,1762401048003,-1330.71,0.00023287,2]
[393264903,1762401048011,-1330.71,0.00023287,2]
[393264904,1762401048021,-1330.86105976,0.00023287,2]
[393264905,1762401048030,-5000.0,0.00023288,7]
[393264906,1762401048040,-5000.0,0.00023288,7]
[393264907,1762401048050,-5000.0,0.00023288,7]
[393264908,1762401048059,-5000.0,0.00023288,7]
[393264909,1762401048069,-5000.0,0.00023288,7]
[393264910,1762401048078,-5000.0,0.00023288,7]
[393264911,1762401048087,-5000.0,0.00023288,7]
[393264912,1762401048097,-5000.0,0.00023288,7]
[393264913,1762401048106,-399.6403651,0.00023288,7]
[393264914,1762401048115,-5000.0,0.00023288,7]
[393264915,1762401048124,-5000.0,0.00023288,7]
[393264916,1762401048133,-5000.0,0.00023288,7]
[393264917,1762401048142,-5000.0,0.00023288,7]
[393264918,1762401048152,-560.0,0.00023342,2]
[393264919,1762401048161,-553.64373807,0.00023352,2]
[393264920,1762401048170,-507.03711027,0.00023507,2]
[393264921,1762401048179,-912.66679849,0.00023507,2]
[393264922,1762401048188,-2000.0,0.00023616,2]
[393264923,1762401048198,-470.88671785,0.00023616,2]
[393264924,1762401048207,-2000.0,0.00023616,2]
[393264925,1762401048217,-1514.01752871,0.00023616,2]
[393264926,1762401048234,-2000.0,0.00023616,2]
[393264927,1762401048244,-474.5737993,0.00023616,2]
[393264928,1762401048255,-240.63927608,0.00023616,2]
[393264929,1762401048265,-2000.0,0.00023616,2]
[393264930,1762401048275,-2000.0,0.00023616,2]
[393264931,1762401048284,-2000.0,0.00023616,2]
[393264932,1762401048293,-150.0,0.00023669,2]
[393264933,1762401048303,-3696.87137113,0.000237,14]
[393264934,1762401048313,-1516.5632423,0.0002385,2]
[393264935,1762401048323,-660.0,0.0002389,2]
[393264936,1762401048333,-321.11093535,0.000239,2]
[393264937,1762401048343,-2351.0,0.00023907,2]
[393264938,1762401048353,-1722.85986916,0.00024,2]
[393264939,1762401048363,-462.12277719,0.00024,2]
[393264940,1762401048372,-5000.0,0.00024,7]
[393264941,1762401048381,-5000.0,0.00024,7]
[393264942,1762401048391,-5000.0,0.00024,7]
[393264943,1762401048400,-5000.0,0.00024,7]
[393264944,1762401048409,-155111.11355511,0.00024142,2]
[393264945,1762401048419,-5000.0,0.00024142,7]
[393264946,1762401048428,-5000.0,0.00024142,7]
[393264947,1762401048438,-5000.0,0.00024142,7]
[393264948,1762401048447,-5000.0,0.00024142,7]
[393264949,1762401048456,-399.6403651,0.00024142,7]
[393264950,1762401048465,-2500.0,0.00024164,2]
[393264951,1762401048475,-506.8554629,0.00024164,2]
[393264952,1762401048484,-541.76459339,0.00024164,2]
[393264953,1762401048494,-662.73429355,0.00024164,2]
[393264954,1762401048503,-2500.0,0.00024164,2]
[393264955,1762401048512,-2500.0,0.00024164,2]
[393264956,1762401048522,-150.0,0.00024173,2]
[393264957,1762401048531,-198.4,0.000242,14]
[393264958,1762401048540,-231.0,0.00024289,2]
[393264959,1762401048550,-10645.08,0.000243,7]
[393264960,1762401048559,-168.89781763,0.00024383,2]
[393264961,1762401048568,-290.12,0.000244,7]
[393264962,1762401048578,-760.0,0.00024438,2]
[393264963,1762401048587,-150.0,0.00024616,2]
[393264964,1762401048596,-25757.94113502,0.0002465,2]
[393264965,1762401048606,-150.0,0.00024658,2]
[393264966,1762401048615,-154.93318549,0.00024658,2]
[393264967,1762401048625,-2037.9053451,0.00024712,2]
[393264968,1762401048634,-3000.0,0.00024712,2]
[393264969,1762401048644,-3000.0,0.00024712,2]
[393264970,1762401048654,-300.0,0.00024721,2]
[393264971,1762401048665,-182.30076183,0.00024742,2]
[393264972,1762401048752,-729.20304733,0.00024742,2]
[393264973,1762401048763,-1640.70685649,0.00024742,2]
[393264974,1762401048773,-151.35679632,0.00024744,2]
[393264975,1762401048782,-605.42718528,0.00024744,2]
[393264976,1762401048791,-1362.21116687,0.00024744,2]
[393264977,1762401048800,-16718.24335102,0.00024774,2]
[393264978,1762401048810,-628.0,0.0002485,2]
[393264979,1762401048820,-2165.0,0.0002485,2]
[393264980,1762401048829,-986.0,0.0002485,2]
[393264981,1762401048841,-219.107957,0.000249,2]
[393264982,1762401048851,-51005.32448441,0.000249,2]
[393264983,1762401048868,-4263.21422808,0.000249,2]
[393265032,1762401404701,474.0,0.00032876,120]
[393265095,1762401946821,154.0,0.00032877,120]
[393265139,1762402231929,-150.0,0.00020021,2]
[393265141,1762402231938,-241.24924178,0.00020021,2]
[393265143,1762402231949,-42.75075822,0.00020021,2]
[393265145,1762402231958,-394.07900959,0.00020973,2]
[393265166,1762402237783,-105.92099041,0.00020973,2]
[393265167,1762402237792,-503.09611392,0.00020973,2]
[393265168,1762402237802,-399.6403651,0.00020992,2]
[393265169,1762402237812,-1200.0,0.00020998,2]
[393265170,1762402237822,-1167.26876149,0.00020999,2]
[393265171,1762402237833,-33581.96994969,0.00020999,2]
[393265172,1762402237844,-1729.4167162,0.00020999,2]
[393265549,1762402243014,-300.0,0.00020999,2]
[393265551,1762402243027,-12643.37997973,0.00020999,2]
[393265553,1762402243036,-150.0,0.00021088,2]
[393265555,1762402243046,-503.58073525,0.00021521,2]
[393265559,1762402243067,-468.942,0.00021521,2]
[393265881,1762402246345,-27.47726475,0.00021521,2]
[393265883,1762402246355,-177.0,0.00022021,2]
[393265885,1762402246364,-72.03773555,0.00022068,2]
[393266224,1762402301935,5200.13,0.00032877,120]
[393266227,1762402785233,224.8869,0.00032876,120]
[393266233,1762403112952,474.188468,0.00013699,2]
[393266285,1762403432099,-3424.07020985,0.00018215,2]
[393266287,1762403432109,-750.04703489,0.00018399,2]
[393266289,1762403432118,-242.0,0.00018399,2]
[393266291,1762403432127,-667.42786111,0.00018585,2]
[393266293,1762403432136,-150.0,0.0001918,2]
[393266294,1762403432146,-236.8034186,0.00020187,2]
[393266298,1762403432171,-237.3850494,0.00020187,2]
[393266300,1762403432180,-167.91849057,0.00020889,2]
[393266307,1762403432238,-445.5996029,0.00020889,2]
[393266309,1762403432247,-145.18506661,0.00020889,2]
[393266411,1762403438026,-31.20135926,0.00020889,2]
[393266412,1762403438036,-417.38941945,0.00020973,2]
[393266413,1762403438046,-272.03640532,0.00020973,2]
[393266414,1762403438058,-159.75097655,0.00020973,2]
[393266415,1762403438068,-150.0,0.00020987,2]
[393266416,1762403438078,-116.03659404,0.00020988,2]
[393266417,1762403438090,-383.96340596,0.00020988,2]
[393266418,1762403438100,-71.21908948,0.00020988,2]
[393266419,1762403438112,-428.78091052,0.00020988,2]
[393266420,1762403438122,-500.0,0.00020988,2]
[393266421,1762403438132,-500.0,0.00020988,2]
[393266422,1762403438142,-500.0,0.00020988,2]
[393266423,1762403438151,-243.44267933,0.00020988,2]
[393266424,1762403438163,-256.55732067,0.00020988,2]
[393266425,1762403438173,-298.34942386,0.00020988,2]
[393266426,1762403438182,-500.0,0.00020988,2]
[393266427,1762403438193,-500.0,0.00020988,2]
[393266428,1762403438313,-500.0,0.00020988,2]
[393266429,1762403438332,-584.21367139,0.00020988,2]
[393266430,1762403438342,-398.48360578,0.00020988,2]
[393266431,1762403438354,-101.51639422,0.00020988,2]
[393266432,1762403438364,-500.0,0.00020988,2]
[393266433,1762403438373,-500.0,0.00020988,2]
[393266434,1762403438383,-500.0,0.00020988,2]
[393266435,1762403438392,-500.0,0.00020988,2]
[393266436,1762403438402,-500.0,0.00020988,2]
[393266437,1762403438411,-500.0,0.00020988,2]
[393266438,1762403438420,-500.0,0.00020988,2]
[393266439,1762403438429,-500.0,0.00020988,2]
[393266440,1762403438439,-413.46039327,0.00020988,2]
[393266441,1762403438451,-86.53960673,0.00020988,2]
[393266442,1762403438460,-617.01491054,0.00020988,2]
[393266443,1762403438471,-500.0,0.00020988,2]
[393266444,1762403438480,-500.0,0.00020988,2]
[393266445,1762403438490,-500.0,0.00020988,2]
[393266446,1762403438499,-500.0,0.00020988,2]
[393266447,1762403438509,-500.0,0.00020988,2]
[393266448,1762403438518,-500.0,0.00020988,2]
[393266449,1762403438528,-500.0,0.00020988,2]
[393266450,1762403438537,-500.0,0.00020988,2]
[393266451,1762403438546,-500.0,0.00020988,2]
[393266452,1762403438556,-500.0,0.00020988,2]
[393266453,1762403438565,-500.0,0.00020988,2]
[393266454,1762403438574,-500.0,0.00020988,2]
[393266455,1762403438583,-500.0,0.00020988,2]
[393266456,1762403438593,-500.0,0.00020988,2]
[393266457,1762403438602,-500.0,0.00020988,2]
[393266458,1762403438611,-500.0,0.00020988,2]
[393266459,1762403438621,-500.0,0.00020988,2]
[393266460,1762403438630,-500.0,0.00020988,2]
[393266461,1762403438639,-500.0,0.00020988,2]
[393266462,1762403438648,-500.0,0.00020988,2]
[393266463,1762403438657,-500.0,0.00020988,2]
[393266464,1762403438666,-500.0,0.00020988,2]
[393266465,1762403438678,-500.0,0.00020988,2]
[393266466,1762403438687,-500.0,0.00020988,2]
[393266467,1762403438696,-345.79531702,0.00020988,2]
[393266468,1762403438705,-500.0,0.00020988,2]
[393266469,1762403438715,-500.0,0.00020988,2]
[393266470,1762403438724,-500.0,0.00020988,2]
[393266471,1762403438732,-500.0,0.00020988,2]
[393266472,1762403438742,-500.0,0.00020988,2]
[393266473,1762403438753,-505.83565548,0.00020988,2]
[393266474,1762403438762,-500.0,0.00020988,2]
[393266475,1762403438771,-500.0,0.00020988,2]
[393266476,1762403438780,-500.0,0.00020988,2]
[393266477,1762403438790,-500.0,0.00020988,2]
[393266478,1762403438799,-500.0,0.00020988,2]
[393266479,1762403438808,-500.0,0.00020988,2]
[393266480,1762403438818,-500.0,0.00020988,2]
[393266481,1762403438827,-500.0,0.00020988,2]
[393266482,1762403438836,-500.0,0.00020988,2]
[393266483,1762403438845,-500.0,0.00020988,2]
[393266484,1762403438855,-500.0,0.00020988,2]
[393266485,1762403438864,-457.93631732,0.00020988,2]
[393266486,1762403438873,-500.0,0.00020988,2]
[393266487,1762403438883,-500.0,0.00020988,2]
[393266488,1762403438892,-500.0,0.00020988,2]
[393266489,1762403438902,-500.0,0.00020988,2]
[393266490,1762403438911,-500.0,0.00020988,2]
[393266491,1762403438921,-500.0,0.00020988,2]
[393266492,1762403438930,-500.0,0.00020988,2]
[393266493,1762403438941,-500.0,0.00020988,2]
[393266494,1762403438951,-500.0,0.00020988,2]
[393266495,1762403438960,-300.0,0.00020988,2]
[393266496,1762403438970,-300.0,0.00020988,2]
[393266497,1762403438979,-300.0,0.00020988,2]
[393266498,1762403438989,-300.0,0.00020988,2]
[393266499,1762403438998,-300.0,0.00020988,2]
[393266500,1762403439008,-1200.0,0.00020989,2]
[393266501,1762403439017,-399.6403651,0.00020989,2]
[393266502,1762403439027,-1200.0,0.0002099,2]
[393266503,1762403439036,-155.0,0.00020995,2]
[393266504,1762403439045,-58.52422682,0.00020998,2]
[393266505,1762403439058,-453.2882486,0.00020998,2]
[393266506,1762403439067,-500.0,0.00021,2]
[393266507,1762403439076,-177.0,0.0002118,2]
[393266508,1762403439086,-1000.0,0.00021548,2]
[393266509,1762403439096,-599.03072851,0.00022,2]
[393266510,1762403439106,-199.5393832,0.00022064,2]
[393266511,1762403439115,-1500.0,0.00022096,2]
[393266512,1762403439124,-927.96226445,0.00022644,2]
[393266513,1762403439134,-1680.0,0.00022941,2]
[393266514,1762403439143,-155.0,0.00023095,2]
[393266515,1762403439153,-204.0,0.0002318,2]
[393266516,1762403439162,-235.81883897,0.00023657,2]
[393266517,1762403439173,-165.07318727,0.00023657,2]
[393266518,1762403439183,-12164.45838245,0.00023658,2]
[393266519,1762403439194,-24205.43980095,0.00023658,2]
[393266520,1762403439203,-250.0,0.0002404,2]
[393266521,1762403439213,-250.0,0.0002404,2]
[393266522,1762403439222,-250.0,0.0002404,2]
[393266523,1762403439232,-250.0,0.0002404,2]
[393266524,1762403439242,-250.0,0.0002404,2]
[393266525,1762403439251,-250.0,0.0002404,2]
[393266526,1762403439261,-250.0,0.0002404,2]
[393266527,1762403439271,-250.0,0.0002404,2]
[393266528,1762403439280,-250.0,0.0002404,2]
[393266529,1762403439289,-251.29961986,0.0002404,2]
[393266530,1762403439298,-399.6403651,0.00024112,10]
[393266531,1762403439307,-14190.1,0.00024132,10]
[393266532,1762403439316,-79204.84935463,0.00024142,2]
[393266533,1762403439328,-6657.59284747,0.00024142,2]
[393266534,1762403439338,-314.0,0.00024188,2]
[393266535,1762403439347,-314.0,0.00024213,2]
[393266536,1762403439357,-168.0,0.00024383,2]
[393266537,1762403439366,-168.89781764,0.00024451,2]
[393266538,1762403439376,-6992.38432153,0.0002465,2]
[393266539,1762403439387,-5100.70006066,0.0002465,2]
[393266540,1762403439398,-6144.92017638,0.0002465,2]
[393266541,1762403439409,-1789.56797325,0.0002465,2]
[393266542,1762403439420,-1018.95959998,0.0002465,2]
[393266543,1762403439433,-3669.33020139,0.0002465,2]
[393266544,1762403439442,-314.0,0.00024726,7]
[393266545,1762403439451,-533.92859423,0.00024777,2]
[393266562,1762403443378,-452.07140577,0.00024777,2]
[393266563,1762403443388,-1801.85237226,0.00024777,2]
[393266564,1762403443401,-363.14762774,0.00024777,2]
[393266565,1762403443413,-628.0,0.00024777,2]
[393266566,1762403443422,-412.0,0.00024777,2]
[393266567,1762403443431,-314.0,0.00024781,2]
[393266568,1762403443440,-314.0,0.00024814,7]
[393266569,1762403443450,-262.75237226,0.00024819,2]
[393266570,1762403443462,-51.24762774,0.00024819,2]
[393266571,1762403443471,-221.58420143,0.0002482,2]
[393266576,1762403446491,-243.394735,0.00024142,7]
[393266577,1762403446501,-243.394735,0.00024142,7]
[393266578,1762403446511,-1411.95357189,0.0002482,2]
[393266579,1762403446604,-1828.9342412,0.0002482,2]
[393266580,1762403446615,-881.335689,0.0002482,2]
[393266583,1762403550641,180.0,0.000328,120]
[393266584,1762403584523,10000.0,0.00032877,120]
[393266596,1762404127971,538.622928,0.00030137,120]
[393266641,1762404632290,-150.0,0.00020012,2]
[393266643,1762404632299,-182.97214204,0.00020012,2]
[393266645,1762404632310,-100.02785796,0.00020012,2]
[393266647,1762404632320,-177.0,0.00022012,2]
[393266649,1762404632329,-453.307391,0.00023793,2]
[393266651,1762404632337,-204.0,0.00024012,2]
[393266653,1762404632346,-300.0,0.00024098,2]
[393266655,1762404632356,-1200.0,0.00024098,2]
[393266657,1762404632365,-500.0,0.00024108,2]
[393266659,1762404632374,-500.0,0.00024108,2]
[393266661,1762404632383,-379.29979383,0.00024108,2]
[393266663,1762404632392,-500.0,0.00024108,2]
[393266665,1762404632401,-500.0,0.00024108,2]
[393266667,1762404632410,-500.0,0.00024108,2]
[393266669,1762404632419,-500.0,0.00024108,2]
[393266671,1762404632428,-156.40295127,0.00024108,2]
[393266673,1762404632437,-500.0,0.00024108,2]
[393266675,1762404632445,-541.58726346,0.00024108,2]
[393266677,1762404632454,-500.0,0.00024108,2]